[Event "Reykjavik Open 2025"]
[Site "Reykjavik, Iceland"]
[Date "2025.04.10"]
[Round "2.2"]
[White "Ivic, Velimir"]
[Black "Muetsch, Annmarie"]
[Result "1-0"]
[WhiteElo "2623"]
[WhiteTitle "GM"]
[WhiteFideId "950122"]
[BlackElo "2329"]
[BlackTitle "WIM"]
[BlackFideId "12971367"]
[TimeControl "90+30 +30 after 40 moves"]
[Variant "Standard"]
[ECO "A20"]
[Opening "English Opening: King's English Variation"]
[StudyName "Round 2"]
1. c4 { [%clk 1:30:54] } 1... e5 { [%clk 1:27:43] } 2. g3 { [%clk 1:30:30] } 2... d6 { [%clk 1:26:10] } 3. Bg2 { [%clk 1:30:13] } 3... Nd7 { [%clk 1:26:05] } 4. Nc3 { [%clk 1:29:32] } 4... g6 { [%clk 1:26:07] } 5. Nf3 { [%clk 1:26:24] } 5... Bg7 { [%clk 1:26:16] } 6. O-O { [%clk 1:26:02] } 6... Ne7 { [%clk 1:25:40] } 7. d3 { [%clk 1:19:13] } 7... O-O { [%clk 1:25:24] } 8. Rb1 { [%clk 1:19:03] } 8... a5 { [%clk 1:22:39] } 9. a3 { [%clk 1:18:19] } 9... Nc5 { [%clk 1:18:03] } 10. b4 { [%clk 1:16:50] } 10... axb4 { [%clk 1:18:17] } 11. axb4 { [%clk 1:17:14] } 11... Ne6 { [%clk 1:17:47] } 12. Bb2 { [%clk 1:00:54] } 12... c6 { [%clk 1:10:35] } 13. e3 { [%clk 0:57:27] } 13... d5 { [%clk 1:05:44] } 14. Qb3 { [%clk 0:56:44] } 14... d4 { [%clk 0:57:54] } 15. Ne4 { [%clk 0:51:39] } 15... Nf5 { [%clk 0:54:24] } 16. Rfe1 { [%clk 0:51:40] } 16... Nd6 { [%clk 0:50:59] } 17. Ned2 { [%clk 0:49:15] } 17... c5 { [%clk 0:44:42] } 18. exd4 { [%clk 0:45:32] } 18... exd4 { [%clk 0:44:27] } 19. Ba3 { [%clk 0:43:46] } 19... Qc7 { [%clk 0:41:36] } 20. bxc5 { [%clk 0:37:21] } 20... Nxc5 { [%clk 0:41:47] } 21. Bxc5 { [%clk 0:37:45] } 21... Qxc5 { [%clk 0:42:08] } 22. Qb6 { [%clk 0:38:04] } 22... Qxb6 { [%clk 0:34:52] } 23. Rxb6 { [%clk 0:38:24] } 23... Rd8 { [%clk 0:32:45] } 24. Ng5 { [%clk 0:31:53] } 24... h6 { [%clk 0:26:46] } 25. Nge4 { [%clk 0:30:37] } 25... Nxe4 { [%clk 0:26:40] } 26. Bxe4 { [%clk 0:29:46] } 26... Ra3 { [%clk 0:23:05] } 27. Reb1 { [%clk 0:27:25] } 27... Bf8 { [%clk 0:20:57] } 28. R6b3 { [%clk 0:24:35] } 28... Rxb3 { [%clk 0:14:22] } 29. Rxb3 { [%clk 0:24:37] } 29... Rd7 { [%clk 0:14:44] } 30. Rb5 { [%clk 0:23:24] } 30... Be7 { [%clk 0:10:52] } 31. Nb3 { [%clk 0:21:57] } 31... Kg7 { [%clk 0:10:28] } 32. Bd5 { [%clk 0:15:32] } 32... Bf6 { [%clk 0:10:21] } 33. Nc5 { [%clk 0:08:49] } 33... Rc7 { [%clk 0:10:18] } 34. Nxb7 { [%clk 0:08:48] } 34... Bxb7 { [%clk 0:10:26] } 35. Bxb7 { [%clk 0:09:13] } 35... Be7 { [%clk 0:10:41] } 36. Kg2 { [%clk 0:06:58] } 36... f5 { [%clk 0:09:54] } 37. h4 { [%clk 0:05:18] } 37... h5 { [%clk 0:09:04] } 38. Bd5 { [%clk 0:05:16] } 38... Bc5 { [%clk 0:08:53] } 39. Kf3 { [%clk 0:05:24] } 39... Ba3 { [%clk 0:04:31] } 40. Ra5 { [%clk 0:04:37] } 40... Bb4 { [%clk 0:04:32] } 41. Ra4 { [%clk 0:04:10] } 41... Bc5 { [%clk 0:27:16] } 42. Ra6 { [%clk 0:33:04] } 42... Bb4 { [%clk 0:26:39] } 43. Kf4 { [%clk 0:30:40] } 43... Bd2+ { [%clk 0:24:25] } 44. Ke5 { [%clk 0:28:59] } 44... Be1 { [%clk 0:23:10] } 45. Ra2 { [%clk 0:25:43] } 45... Bc3 { [%clk 0:22:31] } 46. Kd6 { [%clk 0:24:37] } 46... Rc8 { [%clk 0:22:50] } 47. Kd7 { [%clk 0:23:46] } 47... Rc5 { [%clk 0:22:11] } 48. Ra7 { [%clk 0:22:04] } 48... Kh6 { [%clk 0:18:21] } 49. f4 { [%clk 0:13:23] } 49... Bb4 { [%clk 0:13:02] } 50. Rb7 { [%clk 0:12:26] } 50... Ba3 { [%clk 0:12:49] } 51. Rb3 { [%clk 0:11:39] } 51... Ra5 { [%clk 0:12:38] } 52. Rxa3 { [%clk 0:11:21] } 52... Rxa3 { [%clk 0:12:22] } 53. c5 { [%clk 0:11:47] } 53... Ra7+ { [%clk 0:04:12] } 54. Kd6 { [%clk 0:11:54] } 1-0

[Event "Reykjavik Open 2025"]
[Site "Reykjavik, Iceland"]
[Date "2025.04.10"]
[Round "2.3"]
[White "Safarli, Eltaj"]
[Black "Dushyant Sharma"]
[Result "1/2-1/2"]
[WhiteElo "2617"]
[WhiteTitle "GM"]
[WhiteFideId "13402129"]
[BlackElo "2313"]
[BlackTitle "IM"]
[BlackFideId "25065130"]
[TimeControl "90+30 +30 after 40 moves"]
[Variant "Standard"]
[ECO "C77"]
[Opening "Ruy Lopez: Morphy Defense, Anderssen Variation"]
[StudyName "Round 2"]
1. e4 { [%clk 1:30:57] } 1... e5 { [%clk 1:30:17] } 2. Nf3 { [%clk 1:31:21] } 2... Nc6 { [%clk 1:30:43] } 3. Bb5 { [%clk 1:31:31] } 3... a6 { [%clk 1:30:29] } 4. Ba4 { [%clk 1:31:56] } 4... Nf6 { [%clk 1:30:29] } 5. d3 { [%clk 1:32:02] } 5... b5 { [%clk 1:24:40] } 6. Bb3 { [%clk 1:32:22] } 6... Bc5 { [%clk 1:24:47] } 7. Nc3 { [%clk 1:32:23] } 7... d6 { [%clk 1:23:27] } 8. Nd5 { [%clk 1:32:22] } 8... h6 { [%clk 1:20:00] } 9. c3 { [%clk 1:32:19] } 9... Be6 { [%clk 1:15:11] } 10. Nxf6+ { [%clk 1:31:44] } 10... Qxf6 { [%clk 1:15:21] } 11. O-O { [%clk 1:31:58] } 11... O-O { [%clk 1:14:48] } 12. Bxe6 { [%clk 1:32:12] } 12... fxe6 { [%clk 1:14:48] } 13. b4 { [%clk 1:32:26] } 13... Bb6 { [%clk 1:14:45] } 14. Be3 { [%clk 1:32:50] } 14... d5 { [%clk 1:05:44] } 15. Qe2 { [%clk 1:08:05] } 15... Ne7 { [%clk 0:54:27] } 16. a4 { [%clk 1:18:08] } 16... Ng6 { [%clk 0:51:02] } 17. axb5 { [%clk 1:18:10] } 17... axb5 { [%clk 0:44:32] } 18. Rxa8 { [%clk 1:18:35] } 18... Rxa8 { [%clk 0:44:56] } 19. Bxb6 { [%clk 1:16:20] } 19... cxb6 { [%clk 0:45:20] } 20. Qe3 { [%clk 1:14:08] } 20... Ra3 { [%clk 0:34:46] } 21. Rc1 { [%clk 0:58:17] } 21... d4 { [%clk 0:21:50] } 22. cxd4 { [%clk 0:57:23] } 22... exd4 { [%clk 0:22:13] } 23. Qxd4 { [%clk 0:55:54] } 23... Nf4 { [%clk 0:18:17] } 24. Rc8+ { [%clk 0:53:39] } 24... Kh7 { [%clk 0:18:22] } 25. Qxf6 { [%clk 0:53:57] } 25... gxf6 { [%clk 0:18:47] } 26. h4 { [%clk 0:54:15] } 26... Rxd3 { [%clk 0:17:38] } 27. e5 { [%clk 0:44:42] } 27... fxe5 { [%clk 0:11:57] } 28. Nxe5 { [%clk 0:44:04] } 28... Rd4 { [%clk 0:11:45] } 29. Rc7+ { [%clk 0:34:58] } 29... Kg8 { [%clk 0:11:42] } 30. g3 { [%clk 0:35:17] } 30... Nd5 { [%clk 0:08:25] } 31. Rb7 { [%clk 0:31:13] } 31... Rxb4 { [%clk 0:08:02] } 32. h5 { [%clk 0:25:37] } 32... Re4 { [%clk 0:04:01] } 33. Nd7 { [%clk 0:25:08] } 33... b4 { [%clk 0:03:03] } 34. Nxb6 { [%clk 0:25:30] } 34... Nxb6 { [%clk 0:01:45] } 35. Rxb6 { [%clk 0:25:59] } 35... Kf7 { [%clk 0:01:20] } 36. Kg2 { [%clk 0:26:13] } 36... Re5 { [%clk 0:00:56] } 37. g4 { [%clk 0:26:11] } 37... Re4 { [%clk 0:01:10] } 38. Kg3 { [%clk 0:25:05] } 38... Kf6 { [%clk 0:00:56] } 39. Rb5 { [%clk 0:22:48] } 39... Rc4 { [%clk 0:00:34] } 40. f3 { [%clk 0:22:53] } 40... Rd4 { [%clk 0:00:32] } 41. Rb7 { [%clk 0:19:32] } 41... Rc4 { [%clk 0:23:24] } 42. Rh7 { [%clk 0:27:30] } 42... b3 { [%clk 0:21:30] } 43. Rxh6+ { [%clk 0:26:39] } 43... Ke5 { [%clk 0:20:27] } 44. Rg6 { [%clk 0:26:53] } 44... Kd6 { [%clk 0:11:29] } 45. Rg8 { [%clk 0:24:42] } 45... Kc7 { [%clk 0:11:51] } 46. h6 { [%clk 0:24:14] } 46... b2 { [%clk 0:12:13] } 47. h7 { [%clk 0:24:27] } 47... b1=Q { [%clk 0:12:27] } 48. h8=Q { [%clk 0:24:46] } 1/2-1/2

[Event "Reykjavik Open 2025"]
[Site "Reykjavik, Iceland"]
[Date "2025.04.10"]
[Round "2.4"]
[White "Frayna, Janelle Mae"]
[Black "Ivanchuk, Vasyl"]
[Result "0-1"]
[WhiteElo "2311"]
[WhiteTitle "WGM"]
[WhiteFideId "5212499"]
[BlackElo "2604"]
[BlackTitle "GM"]
[BlackFideId "14100010"]
[TimeControl "90+30 +30 after 40 moves"]
[Variant "Standard"]
[ECO "A29"]
[Opening "English Opening: King's English Variation, Four Knights Variation, Fianchetto Line, with Nb6"]
[StudyName "Round 2"]
1. c4 { [%clk 1:30:59] } 1... e5 { [%clk 1:30:33] } 2. Nc3 { [%clk 1:30:47] } 2... Nf6 { [%clk 1:30:16] } 3. Nf3 { [%clk 1:29:28] } 3... Nc6 { [%clk 1:30:21] } 4. g3 { [%clk 1:28:15] } 4... d5 { [%clk 1:28:47] } 5. cxd5 { [%clk 1:27:18] } 5... Nxd5 { [%clk 1:29:12] } 6. Bg2 { [%clk 1:24:18] } 6... Nb6 { [%clk 1:29:31] } 7. O-O { [%clk 1:24:12] } 7... Be7 { [%clk 1:29:56] } 8. b3 { [%clk 1:18:26] } 8... Bf5 { [%clk 1:23:44] } 9. Bb2 { [%clk 1:14:34] } 9... Qd7 { [%clk 1:18:20] } 10. d4 { [%clk 1:12:29] } 10... exd4 { [%clk 1:14:30] } 11. Nb5 { [%clk 1:11:14] } 11... Be4 { [%clk 1:13:51] } 12. Nbxd4 { [%clk 1:06:34] } 12... Bf6 { [%clk 1:08:34] } 13. Ne5 { [%clk 0:46:14] } 13... Bxe5 { [%clk 0:57:54] } 14. Bxe4 { [%clk 0:46:40] } 14... Nxd4 { [%clk 0:58:13] } 15. e3 { [%clk 0:47:06] } 15... Nf3+ { [%clk 0:56:45] } 16. Qxf3 { [%clk 0:47:25] } 16... Bxb2 { [%clk 0:57:11] } 17. Bxb7 { [%clk 0:45:00] } 17... O-O { [%clk 0:57:31] } 18. Rab1 { [%clk 0:42:44] } 18... Be5 { [%clk 0:52:29] } 19. Rfd1 { [%clk 0:42:53] } 19... Bd6 { [%clk 0:52:37] } 20. Bxa8 { [%clk 0:40:36] } 20... Rxa8 { [%clk 0:53:05] } 21. Qb7 { [%clk 0:38:43] } 21... Qc8 { [%clk 0:32:05] } 22. Qc6 { [%clk 0:34:40] } 22... Qe8 { [%clk 0:28:50] } 23. Qb7 { [%clk 0:31:24] } 23... h5 { [%clk 0:24:46] } 24. Rbc1 { [%clk 0:28:57] } 24... h4 { [%clk 0:22:43] } 25. Rd4 { [%clk 0:25:57] } 25... Rb8 { [%clk 0:18:11] } 26. Qg2 { [%clk 0:23:03] } 26... hxg3 { [%clk 0:17:20] } 27. hxg3 { [%clk 0:23:28] } 27... Qe5 { [%clk 0:15:53] } 28. Rcd1 { [%clk 0:21:25] } 28... g6 { [%clk 0:14:55] } 29. Qh3 { [%clk 0:19:39] } 29... Re8 { [%clk 0:14:29] } 30. Kg2 { [%clk 0:18:25] } 30... Qc5 { [%clk 0:12:13] } 31. Kg1 { [%clk 0:10:16] } 31... Kg7 { [%clk 0:10:08] } 32. Rh4 { [%clk 0:05:58] } 32... Be5 { [%clk 0:10:36] } 33. Kg2 { [%clk 0:05:24] } 33... Qc6+ { [%clk 0:08:56] } 34. Kg1 { [%clk 0:01:46] } 34... Qc2 { [%clk 0:09:24] } 35. Rf1 { [%clk 0:01:21] } 35... Qxa2 { [%clk 0:06:26] } 36. Re4 { [%clk 0:00:38] } 36... Qxb3 { [%clk 0:05:30] } 37. Qg2 { [%clk 0:00:32] } 37... Nd5 { [%clk 0:02:08] } 38. f4 { [%clk 0:00:44] } 38... Nxe3 { [%clk 0:02:36] } 39. Qf3 { [%clk 0:01:07] } 39... Qb6 { [%clk 0:03:05] } 40. fxe5 { [%clk 0:00:33] } 40... Nxf1+ { [%clk 0:03:28] } 41. Kxf1 { [%clk 0:00:57] } 41... Qb5+ { [%clk 0:30:17] } 42. Kg2 { [%clk 0:31:03] } 42... Qd5 { [%clk 0:30:23] } 0-1

[Event "Reykjavik Open 2025"]
[Site "Reykjavik, Iceland"]
[Date "2025.04.10"]
[Round "2.5"]
[White "Banusz, Tamas"]
[Black "Sarkar, Justin"]
[Result "1-0"]
[WhiteElo "2592"]
[WhiteTitle "GM"]
[WhiteFideId "722413"]
[BlackElo "2305"]
[BlackTitle "IM"]
[BlackFideId "2010011"]
[TimeControl "90+30 +30 after 40 moves"]
[Variant "Standard"]
[ECO "A36"]
[Opening "English Opening: Symmetrical Variation, Ultra-Symmetrical Variation"]
[StudyName "Round 2"]
1. c4 { [%clk 1:30:56] } 1... g6 { [%clk 1:30:12] } 2. g3 { [%clk 1:30:52] } 2... Bg7 { [%clk 1:29:48] } 3. Bg2 { [%clk 1:31:06] } 3... c5 { [%clk 1:29:59] } 4. Nc3 { [%clk 1:30:18] } 4... Nc6 { [%clk 1:29:52] } 5. d3 { [%clk 1:30:21] } 5... e6 { [%clk 1:28:50] } 6. h4 { [%clk 1:28:49] } 6... h6 { [%clk 1:27:51] } 7. h5 { [%clk 1:27:10] } 7... g5 { [%clk 1:28:07] } 8. f4 { [%clk 1:27:22] } 8... d5 { [%clk 1:27:28] } 9. cxd5 { [%clk 1:20:02] } 9... exd5 { [%clk 1:27:31] } 10. Nxd5 { [%clk 1:20:10] } 10... Nge7 { [%clk 1:25:53] } 11. Nxe7 { [%clk 1:18:14] } 11... Qxe7 { [%clk 1:26:09] } 12. Nf3 { [%clk 1:16:53] } 12... g4 { [%clk 1:11:59] } 13. Nh4 { [%clk 1:05:46] } 13... Qd6 { [%clk 0:54:26] } 14. Be4 { [%clk 0:57:58] } 14... Ne7 { [%clk 0:54:45] } 15. Qc2 { [%clk 0:57:16] } 15... Rb8 { [%clk 0:44:26] } 16. Bd2 { [%clk 0:54:47] } 16... O-O { [%clk 0:38:33] } 17. Rc1 { [%clk 0:43:51] } 17... b6 { [%clk 0:19:32] } 18. b4 { [%clk 0:44:12] } 18... f5 { [%clk 0:18:00] } 19. Bg2 { [%clk 0:41:40] } 19... Be6 { [%clk 0:18:16] } 20. bxc5 { [%clk 0:40:06] } 20... bxc5 { [%clk 0:18:42] } 21. Bc3 { [%clk 0:40:27] } 21... Bd4 { [%clk 0:12:26] } 22. Bxd4 { [%clk 0:37:59] } 22... cxd4 { [%clk 0:12:41] } 23. Qc7 { [%clk 0:36:20] } 23... Qb4+ { [%clk 0:05:11] } 24. Kf2 { [%clk 0:36:44] } 24... Qd2 { [%clk 0:03:24] } 25. Qe5 { [%clk 0:36:17] } 25... Bxa2 { [%clk 0:03:12] } 26. Qxe7 { [%clk 0:26:29] } 26... Rbe8 { [%clk 0:02:34] } 27. Rhd1 { [%clk 0:26:30] } 27... Qxd1 { [%clk 0:01:15] } 28. Qxf8+ { [%clk 0:26:34] } 1-0

[Event "Reykjavik Open 2025"]
[Site "Reykjavik, Iceland"]
[Date "2025.04.10"]
[Round "2.6"]
[White "George Samir, David"]
[Black "Muradli, Mahammad"]
[Result "0-1"]
[WhiteElo "2303"]
[WhiteTitle "FM"]
[WhiteFideId "10657789"]
[BlackElo "2588"]
[BlackTitle "GM"]
[BlackFideId "13409301"]
[TimeControl "90+30 +30 after 40 moves"]
[Variant "Standard"]
[ECO "E11"]
[Opening "Bogo-Indian Defense: Retreat Variation"]
[StudyName "Round 2"]
1. c4 { [%clk 1:30:55] } 1... e6 { [%clk 1:20:34] } 2. Nf3 { [%clk 1:31:14] } 2... d5 { [%clk 1:20:48] } 3. d4 { [%clk 1:31:39] } 3... Nf6 { [%clk 1:21:10] } 4. g3 { [%clk 1:32:05] } 4... Bb4+ { [%clk 1:21:08] } 5. Bd2 { [%clk 1:32:29] } 5... Be7 { [%clk 1:21:31] } 6. Bg2 { [%clk 1:32:54] } 6... Nbd7 { [%clk 1:21:28] } 7. O-O { [%clk 1:33:08] } 7... c6 { [%clk 1:21:52] } 8. Qc2 { [%clk 1:33:18] } 8... b6 { [%clk 1:21:31] } 9. Bf4 { [%clk 1:31:33] } 9... Ba6 { [%clk 1:20:48] } 10. Ne5 { [%clk 1:31:16] } 10... Nxe5 { [%clk 1:14:32] } 11. dxe5 { [%clk 1:31:39] } 11... Nd7 { [%clk 1:14:54] } 12. cxd5 { [%clk 1:32:01] } 12... cxd5 { [%clk 1:15:16] } 13. Rd1 { [%clk 1:32:27] } 13... Rc8 { [%clk 1:14:23] } 14. Nc3 { [%clk 1:31:32] } 14... b5 { [%clk 1:11:56] } 15. e4 { [%clk 1:20:20] } 15... b4 { [%clk 1:02:01] } 16. Qa4 { [%clk 1:01:13] } 16... bxc3 { [%clk 1:02:12] } 17. Qxa6 { [%clk 1:01:26] } 17... c2 { [%clk 1:02:33] } 18. Rdc1 { [%clk 1:00:23] } 18... d4 { [%clk 1:02:56] } 19. Qa4 { [%clk 0:58:25] } 19... d3 { [%clk 1:01:58] } 20. Qb5 { [%clk 0:52:50] } 20... g5 { [%clk 1:02:03] } 21. Be3 { [%clk 0:35:58] } 21... O-O { [%clk 1:02:02] } 22. Qxd3 { [%clk 0:33:46] } 22... Nxe5 { [%clk 1:02:23] } 23. Qe2 { [%clk 0:34:04] } 23... Qd3 { [%clk 1:01:17] } 24. Qh5 { [%clk 0:34:26] } 24... Qb5 { [%clk 0:53:54] } 25. Bf1 { [%clk 0:31:27] } 25... Qxb2 { [%clk 0:54:11] } 26. Bxg5 { [%clk 0:31:53] } 26... Nf3+ { [%clk 0:53:44] } 27. Qxf3 { [%clk 0:31:47] } 27... Bxg5 { [%clk 0:54:11] } 28. Qg4 { [%clk 0:32:11] } 28... Qg7 { [%clk 0:54:30] } 29. f4 { [%clk 0:32:36] } 29... Be7 { [%clk 0:54:20] } 0-1

[Event "Reykjavik Open 2025"]
[Site "Reykjavik, Iceland"]
[Date "2025.04.10"]
[Round "2.7"]
[White "Gupta, Abhijeet"]
[Black "Bjornsson, Sigurbjorn"]
[Result "1-0"]
[WhiteElo "2576"]
[WhiteTitle "GM"]
[WhiteFideId "5010608"]
[BlackElo "2303"]
[BlackTitle "FM"]
[BlackFideId "2300974"]
[TimeControl "90+30 +30 after 40 moves"]
[Variant "Standard"]
[ECO "E10"]
[Opening "Indian Defense: Anti-Nimzo-Indian"]
[StudyName "Round 2"]
1. d4 { [%clk 1:30:59] } 1... Nf6 { [%clk 1:30:15] } 2. c4 { [%clk 1:31:22] } 2... e6 { [%clk 1:29:57] } 3. Nf3 { [%clk 1:29:21] } 3... d5 { [%clk 1:30:02] } 4. g3 { [%clk 1:29:29] } 4... Nbd7 { [%clk 1:30:01] } 5. Bg2 { [%clk 1:29:33] } 5... dxc4 { [%clk 1:29:39] } 6. O-O { [%clk 1:28:36] } 6... Rb8 { [%clk 1:29:35] } 7. a4 { [%clk 1:27:54] } 7... a6 { [%clk 1:29:19] } 8. a5 { [%clk 1:24:30] } 8... Bd6 { [%clk 1:28:59] } 9. Nfd2 { [%clk 1:19:59] } 9... b5 { [%clk 1:26:45] } 10. axb6 { [%clk 1:18:17] } 10... Nxb6 { [%clk 1:27:01] } 11. Nxc4 { [%clk 1:18:13] } 11... Nxc4 { [%clk 1:23:32] } 12. Qa4+ { [%clk 1:18:39] } 12... Rb5 { [%clk 1:22:50] } 13. Bc6+ { [%clk 1:16:54] } 13... Nd7 { [%clk 1:18:25] } 14. Qxc4 { [%clk 1:17:03] } 14... Rb4 { [%clk 1:18:09] } 15. Qc3 { [%clk 1:14:51] } 15... O-O { [%clk 1:17:20] } 16. Bf4 { [%clk 1:15:05] } 16... Nb6 { [%clk 1:14:26] } 17. Nd2 { [%clk 1:13:09] } 17... Be7 { [%clk 1:01:25] } 18. Rfd1 { [%clk 1:03:58] } 18... Nd5 { [%clk 0:58:07] } 19. Bxd5 { [%clk 1:02:30] } 19... Qxd5 { [%clk 0:58:31] } 20. Qxc7 { [%clk 0:58:24] } 20... Bb7 { [%clk 0:53:49] } 21. Nf3 { [%clk 0:57:21] } 21... Bf6 { [%clk 0:42:58] } 22. Bd6 { [%clk 0:52:42] } 22... Rc8 { [%clk 0:38:21] } 23. Qxc8+ { [%clk 0:50:56] } 23... Bxc8 { [%clk 0:38:46] } 24. Bxb4 { [%clk 0:51:23] } 24... Bb7 { [%clk 0:38:30] } 25. Re1 { [%clk 0:43:13] } 25... Qe4 { [%clk 0:36:58] } 26. Ra3 { [%clk 0:39:50] } 26... g5 { [%clk 0:34:03] } 27. Re3 { [%clk 0:40:04] } 27... Qd5 { [%clk 0:33:23] } 28. g4 { [%clk 0:39:55] } 28... h5 { [%clk 0:30:44] } 29. h3 { [%clk 0:38:52] } 29... hxg4 { [%clk 0:30:05] } 30. hxg4 { [%clk 0:39:18] } 30... Bxd4 { [%clk 0:15:35] } 31. Rd1 { [%clk 0:27:21] } 31... e5 { [%clk 0:15:38] } 32. Rxe5 { [%clk 0:17:16] } 32... Bxf2+ { [%clk 0:15:49] } 33. Kxf2 { [%clk 0:17:43] } 33... Qxd1 { [%clk 0:16:12] } 34. Rxg5+ { [%clk 0:18:10] } 34... Kh7 { [%clk 0:16:30] } 35. Rh5+ { [%clk 0:18:34] } 35... Kg6 { [%clk 0:13:24] } 36. Ne5+ { [%clk 0:17:11] } 36... Kf6 { [%clk 0:08:30] } 37. Rf5+ { [%clk 0:17:26] } 37... Ke6 { [%clk 0:08:47] } 38. Nd3 { [%clk 0:17:52] } 38... Bh1 { [%clk 0:02:24] } 39. Rc5 { [%clk 0:15:23] } 39... a5 { [%clk 0:00:43] } 40. Rc1 { [%clk 0:06:20] } 40... Qxc1 { [%clk 0:01:01] } 41. Nxc1 { [%clk 0:06:48] } 41... axb4 { [%clk 0:01:25] } 42. Nd3 { [%clk 0:07:15] } 42... b3 { [%clk 0:01:10] } 43. Ke3 { [%clk 0:05:36] } 43... Kd5 { [%clk 0:29:36] } 44. Kf4 { [%clk 0:35:10] } 44... Kd4 { [%clk 0:27:13] } 45. Ne5 { [%clk 0:34:17] } 45... Bd5 { [%clk 0:20:10] } 46. e3+ { [%clk 0:33:52] } 46... Kc5 { [%clk 0:20:36] } 47. Kf5 { [%clk 0:34:16] } 47... f6 { [%clk 0:17:08] } 48. Kxf6 { [%clk 0:33:25] } 48... Bg8 { [%clk 0:17:22] } 49. Nd3+ { [%clk 0:33:03] } 49... Kd5 { [%clk 0:16:30] } 50. Kg7 { [%clk 0:32:30] } 50... Ke4 { [%clk 0:15:25] } 51. Nc5+ { [%clk 0:32:56] } 51... Kxe3 { [%clk 0:15:31] } 52. Kxg8 { [%clk 0:33:21] } 1-0

[Event "Reykjavik Open 2025"]
[Site "Reykjavik, Iceland"]
[Date "2025.04.10"]
[Round "2.8"]
[White "Pisk, Petr"]
[Black "Jacobson, Brandon"]
[Result "0-1"]
[WhiteElo "2302"]
[WhiteTitle "IM"]
[WhiteFideId "304689"]
[BlackElo "2570"]
[BlackTitle "GM"]
[BlackFideId "30901561"]
[TimeControl "90+30 +30 after 40 moves"]
[Variant "Standard"]
[ECO "B13"]
[Opening "Caro-Kann Defense: Exchange Variation"]
[StudyName "Round 2"]
1. e4 { [%clk 1:30:30] } 1... c6 { [%clk 1:26:01] } 2. d4 { [%clk 1:29:34] } 2... d5 { [%clk 1:26:23] } 3. exd5 { [%clk 1:27:39] } 3... cxd5 { [%clk 1:26:46] } 4. Bd3 { [%clk 1:27:46] } 4... Nc6 { [%clk 1:26:44] } 5. c3 { [%clk 1:27:46] } 5... Qc7 { [%clk 1:26:35] } 6. Ne2 { [%clk 1:19:40] } 6... Bg4 { [%clk 1:26:36] } 7. O-O { [%clk 1:17:38] } 7... e6 { [%clk 1:26:32] } 8. f3 { [%clk 1:17:22] } 8... Bh5 { [%clk 1:26:20] } 9. Bf4 { [%clk 1:17:23] } 9... Qd7 { [%clk 1:22:29] } 10. Nd2 { [%clk 1:12:31] } 10... Bg6 { [%clk 1:22:35] } 11. Nb3 { [%clk 1:11:15] } 11... Nf6 { [%clk 1:22:57] } 12. Ng3 { [%clk 1:07:47] } 12... Bxd3 { [%clk 1:16:43] } 13. Qxd3 { [%clk 1:07:30] } 13... h5 { [%clk 1:16:32] } 14. h3 { [%clk 1:05:01] } 14... Ne7 { [%clk 0:41:57] } 15. Nc5 { [%clk 1:00:17] } 15... Qc6 { [%clk 0:41:01] } 16. Rfe1 { [%clk 1:00:19] } 16... b6 { [%clk 0:38:28] } 17. Na6 { [%clk 0:57:03] } 17... Rc8 { [%clk 0:38:53] } 18. a4 { [%clk 0:29:26] } 18... Ng6 { [%clk 0:37:18] } 19. Bb8 { [%clk 0:21:32] } 19... Nd7 { [%clk 0:29:29] } 20. Be5 { [%clk 0:13:56] } 20... Ndxe5 { [%clk 0:28:18] } 21. dxe5 { [%clk 0:14:18] } 21... h4 { [%clk 0:28:40] } 22. Nh1 { [%clk 0:09:02] } 22... Rh5 { [%clk 0:28:26] } 23. Qd4 { [%clk 0:09:30] } 23... Qb7 { [%clk 0:27:13] } 24. Qd3 { [%clk 0:08:53] } 24... Rc4 { [%clk 0:26:35] } 25. b3 { [%clk 0:08:31] } 25... Rg5 { [%clk 0:20:54] } 26. bxc4 { [%clk 0:07:39] } 26... Rxg2+ { [%clk 0:21:20] } 27. Kf1 { [%clk 0:03:16] } 27... Qxa6 { [%clk 0:21:44] } 28. Rad1 { [%clk 0:03:41] } 28... Bc5 { [%clk 0:21:44] } 29. Kxg2 { [%clk 0:02:53] } 29... Nf4+ { [%clk 0:22:09] } 30. Kf1 { [%clk 0:03:06] } 30... Nxd3 { [%clk 0:22:33] } 31. Rxd3 { [%clk 0:03:33] } 31... Qxc4 { [%clk 0:22:54] } 32. Ke2 { [%clk 0:02:47] } 32... Qf4 { [%clk 0:23:09] } 33. Nf2 { [%clk 0:02:46] } 33... Qh2 { [%clk 0:22:30] } 34. Rf1 { [%clk 0:03:12] } 34... Qxe5+ { [%clk 0:22:55] } 35. Kd1 { [%clk 0:03:22] } 35... Qf4 { [%clk 0:22:58] } 0-1